bitfinex-derivatives/quotes_ETHF0:USTF0_20250928
["timestamp","ask_amount","ask_price","bid_price","bid_amount"]
[1759053852105,3.2078,3993.3,3992.5,1.43191]
[1759053852300,0.67809,3992.8,3992.7,0.4145]
[1759053852498,1.21350871,3992.8,3992.7,0.4145]
[1759053852706,1.76070871,3992.8,3992.7,0.2073]
[1759053852895,1.2253,3992.6,3992.3,3.2078]
[1759053853100,0.90415,3992.2,3992.1,0.52447084]
[1759053853305,1.22535,3992.2,3992.1,0.77647084]
[1759053853500,3.2078,3992.7,3992.5,0.137]
[1759053853811,1.26273,3994.0,3992.5,0.137]
[1759053853812,4.43303,3993.2,3993.1,0.4145]
[1759053854001,4.96857593,3993.2,3993.1,0.7293]
[1759053854312,0.7747,3992.4,3992.3,0.7293]
[1759053854506,0.2275,3992.4,3992.3,0.9823]
[1759053854709,0.2275,3992.4,3992.3,1.43294]
[1759053854904,0.2275,3992.6,3992.5,0.65791]
[1759053855212,0.2275,3993.6,3993.5,0.8663]
[1759053855409,0.7632803,3993.6,3993.5,1.5698]
[1759053855603,0.2275,3993.6,3993.5,1.5698]
[1759053855814,0.7747,3993.4,3993.3,0.70352]
[1759053856006,0.7747,3993.4,3993.3,0.45052]
[1759053856311,0.7747,3993.4,3993.3,1.17982]
[1759053860305,0.45052,3993.3,3993.1,0.45054]
[1759053860613,0.2275,3993.2,3993.1,0.86504]
[1759053861008,0.2275,3993.2,3993.1,1.17984]
[1759053861805,0.5487,3993.2,3993.1,1.17984]
[1759053862414,0.99924,3993.2,3993.1,1.17984]
[1759053862916,0.5487,3993.2,3993.1,1.17984]
[1759053863414,0.99924,3993.2,3993.1,1.17984]
[1759053865310,1.22524,3993.2,3993.1,0.7293]
[1759053865616,0.7534,3993.0,3992.9,1.26566]
[1759053865916,0.7534,3993.0,3992.9,1.23996]
[1759053866114,0.4372,3993.0,3992.9,1.49296]
[1759053866510,0.2199,3993.0,3992.9,1.49296]
[1759053867620,0.7534,3993.0,3992.9,1.49297]
[1759053867825,1.20396,3993.0,3992.9,1.49297]
[1759053869319,1.73970769,3993.0,3992.9,1.49297]
[1759053869519,1.73970769,3993.0,3992.9,1.23997]
[1759053869716,1.73970769,3993.0,3992.9,1.0424]
[1759053870318,1.73970769,3993.0,3992.9,1.49297]
[1759053871717,1.73970769,3993.0,3992.9,1.0424]
[1759053871918,1.73970769,3993.0,3992.9,0.5621]
[1759053872113,1.20401,3992.6,3992.5,1.24002]
[1759053872314,1.73975769,3992.6,3992.5,1.62872]
[1759053873024,1.73975769,3992.6,3992.5,1.37572]
[1759053873215,1.28914769,3992.6,3992.5,1.62872]
[1759053873410,0.75564769,3992.6,3992.5,1.62872]
[1759053873922,1.20625769,3992.6,3992.5,1.62872]
[1759053874318,0.75564769,3992.6,3992.5,1.62872]
[1759053882333,1.52245769,3992.6,3992.5,1.62872]
[1759053882525,1.07184769,3992.6,3992.5,1.62872]
[1759053884128,1.28914769,3992.6,3992.5,1.37572]
[1759053884334,1.28914769,3992.6,3992.5,1.62872]
[1759053885527,1.73975769,3992.6,3992.5,1.49302]
[1759053885931,1.28914769,3992.6,3992.5,1.62872]
[1759053887235,1.73975769,3992.6,3992.5,1.62872]
[1759053888732,1.28914769,3992.6,3992.5,1.62872]
[1759053889241,1.73975769,3992.6,3992.5,1.62872]
[1759053889939,1.28914769,3992.6,3992.5,1.62872]
[1759053890437,1.28914769,3992.6,3992.1,0.00237084]
[1759053890635,1.12697,3991.0,3989.3,5.82852055]
[1759053890936,1.12697,3991.0,3990.0,0.1357]
[1759053890937,0.45089,3990.1,3990.0,0.1357]
[1759053891134,0.451,3989.1,3989.0,0.1357]
[1759053891334,0.707,3989.1,3989.0,0.1357]
[1759053891535,0.79420096,3989.1,3989.0,0.59135181]
[1759053892237,5.53820096,3989.1,3989.0,0.59135181]
[1759053892436,0.79420096,3989.1,3989.0,0.59135181]
[1759053892639,0.79420096,3989.1,3989.0,0.47475181]
[1759053893134,0.79420096,3989.1,3988.5,0.1357]
[1759053893335,3.2078,3988.6,3988.5,0.5764]
[1759053893736,3.4658,3989.0,3988.6,0.45106]
[1759053893942,3.2078,3989.0,3988.5,0.5764]
[1759053894130,3.4658,3989.0,3988.5,1.03023605]
[1759053894340,3.4658,3989.0,3988.9,0.4294]
[1759053894645,0.00289885,3989.1,3989.0,1.00551]
[1759053895338,0.00289885,3989.1,3989.0,1.32391]
[1759053896044,0.00289885,3989.1,3989.0,9.74332727]
[1759053896737,0.258,3989.9,3989.8,0.4294]
[1759053897041,0.92478158,3989.9,3989.8,0.7478]
[1759053897739,0.92757336,3989.9,3989.8,0.95941727]
[1759053897945,1.79305269,3991.1,3989.9,0.66531]
[1759053898144,0.45075,3991.4,3991.3,0.7478]
[1759053898340,0.45075,3991.4,3991.3,0.3184]
[1759053898541,0.70975,3991.4,3991.3,0.3184]
[1759053898741,5.70975,3991.4,3991.3,0.3184]
[1759053898944,5.7116666,3991.4,3991.3,0.32038075]
[1759053899337,5.7116666,3991.4,3991.0,0.1251]
[1759053899338,0.45078,3991.1,3991.0,0.1251]
[1759053899541,3.2078,3991.1,3990.6,0.215]
[1759053899742,3.4668,3991.1,3991.0,0.2144]
[1759053900047,3.91758,3991.1,3991.0,0.4294]
[1759053900248,3.65858,3991.1,3991.0,0.4294]
[1759053900547,3.65858,3991.1,3991.0,0.43206126]
[1759053901341,3.2078,3991.1,3991.0,0.43206126]
[1759053901545,3.2078,3991.1,3991.0,0.75046126]
[1759053901841,0.45088,3990.2,3990.0,0.1251]
[1759053902042,3.4668,3990.1,3989.5,0.3395]
[1759053902235,0.45093,3989.7,3989.5,0.3395]
[1759053902441,0.263,3989.6,3989.5,0.3395]
[1759053902635,3.4708,3989.6,3989.5,0.3395]
[1759053902842,3.4708,3989.6,3989.5,0.12817757]
[1759053903142,3.4708,3989.6,3989.0,0.1251]
[1759053903143,0.45096,3989.5,3989.0,0.1251]
[1759053903339,3.6588,3989.1,3989.0,0.1251]
[1759053903945,0.45106,3988.6,3988.5,0.3395]
[1759053904139,0.45420968,3988.6,3988.5,0.34218271]
[1759053905149,0.45420968,3988.6,3988.5,0.37639516]
[1759053905343,0.00314968,3988.6,3988.5,0.59139516]
[1759053905944,0.00314968,3988.6,3988.5,0.90979516]
[1759053906140,0.00314968,3988.6,3988.5,0.48039516]
[1759053906347,0.00314968,3988.6,3988.5,0.03689516]
[1759053906544,5.00314968,3988.6,3988.5,0.03689516]
[1759053906945,0.45122,3987.2,3987.1,3.2078]
[1759053907144,0.45128,3986.6,3986.5,0.6579]
[1759053907343,0.45128,3986.6,3986.5,0.4435]
[1759053907540,3.2078,3987.3,3986.6,0.3184]
[1759053907744,0.263,3987.2,3987.1,0.7478]
[1759053907946,0.263,3987.2,3987.1,0.00302528]
[1759053908148,3.65901,3987.3,3987.2,0.5328]
[1759053908347,3.92301,3987.3,3987.1,0.00302528]
[1759053908553,3.65901,3987.3,3987.2,0.3184]
[1759053908750,3.2078,3987.3,3987.2,0.7478]
[1759053909256,0.264,3987.4,3987.3,0.5328]
[1759053909458,3.2078,3987.9,3987.5,0.1251]
[1759053909750,3.4718,3987.9,3987.8,0.7478]
[1759053909953,4.13070446,3987.9,3987.8,0.7478]
[1759053910153,3.86670446,3987.9,3987.8,0.7478]
[1759053910355,3.86670446,3987.9,3987.8,0.3184]
[1759053910557,3.86670446,3987.9,3987.8,0.7485]
[1759053911263,0.65890446,3987.9,3987.8,0.7485]
[1759053911760,1.11019138,3988.2,3987.8,0.4301]
[1759053912054,0.65908138,3988.1,3987.8,0.4301]
[1759053912459,0.65908138,3988.1,3987.9,0.3107]
[1759053912757,0.65908138,3988.1,3988.0,0.4301]
[1759053912956,0.65908138,3988.1,3988.0,0.7408]
[1759053913156,3.2078,3988.3,3988.2,0.2083]
[1759053913360,0.65953921,3988.3,3988.2,0.70460654]
[1759053916259,0.65953921,3988.3,3988.2,5.70460654]
[1759053916962,0.65953921,3988.3,3988.2,8.91240654]
[1759053917859,0.65953921,3988.3,3988.2,3.91240654]
[1759053920364,0.71723921,3988.3,3988.2,3.91240654]
[1759053920569,0.71723921,3988.3,3988.2,4.17540654]
[1759053921062,0.71723921,3988.3,3988.2,4.62650654]
[1759053921458,0.65953921,3988.3,3988.2,4.62650654]
[1759053921762,0.71723921,3988.3,3988.2,4.17540654]
[1759053922065,1.16832921,3988.3,3988.2,4.17540654]
[1759053922366,0.71723921,3988.3,3988.2,4.17540654]
[1759053922964,0.71723921,3988.3,3988.2,4.62650654]
[1759053923364,0.65953921,3988.3,3988.2,4.62650654]
[1759053924064,0.71953921,3988.3,3988.2,4.62650654]
[1759053924860,1.23062921,3988.3,3988.2,0.70460654]
[1759053925261,0.77953921,3988.3,3988.2,0.70460654]
[1759053925457,0.77953921,3988.3,3988.2,1.15570654]
[1759053926060,0.65953921,3988.3,3988.2,1.15570654]
[1759053926662,0.65953921,3988.3,3988.2,4.36350654]
[1759053927266,0.00314968,3988.6,3988.5,0.79827]
[1759053927469,0.00314968,3988.6,3988.5,1.61477]
[1759053928760,1.22160968,3988.6,3988.5,0.7653]
[1759053928958,1.22160968,3988.6,3988.5,1.0283]
[1759053929374,0.00314968,3988.6,3988.5,1.61477]
[1759053930373,0.6744,3988.5,3988.4,0.2118]
[1759053930573,0.8949,3988.5,3988.4,0.66288]
[1759053930765,0.8949,3988.5,3988.4,1.21638]
[1759053930967,0.7674,3988.5,3988.4,1.21638]
[1759053931162,0.00314968,3988.6,3988.5,0.45107]
[1759053931369,0.00314968,3988.6,3988.5,1.35177]
[1759053932483,0.77054968,3988.6,3988.5,1.35177]
[1759053932686,0.77054968,3988.6,3988.5,1.47937]
[1759053934990,0.77054968,3988.6,3988.5,1.61477]
[1759053934991,0.00314968,3988.6,3988.5,1.61477]
[1759053935190,0.00314968,3988.6,3988.5,6.61477]
[1759053935882,0.00314968,3988.6,3988.5,1.61377]
[1759053936282,0.22364968,3988.6,3988.5,1.35177]
[1759053936476,0.77054968,3988.6,3988.5,1.35177]
[1759053936680,1.22160968,3988.6,3988.5,1.47837]
[1759053936881,0.77054968,3988.6,3988.5,1.47837]
[1759053937282,1.22160968,3988.6,3988.5,1.0273]
[1759053937787,1.22160968,3988.6,3988.5,0.7653]
[1759053937992,1.22160968,3988.6,3988.5,1.21637]
[1759053938292,0.77054968,3988.6,3988.5,1.21637]
[1759053938990,0.55004968,3988.6,3988.5,1.21637]
[1759053939193,0.00314968,3988.6,3988.5,1.35177]
[1759053939493,0.57022686,3988.6,3988.5,1.35177]
[1759053943602,0.57022686,3988.6,3988.5,6.35177]
[1759053944186,0.57022686,3988.6,3988.5,6.61377]
[1759053945699,1.12202686,3988.6,3988.5,1.35177]
[1759053945901,1.12202686,3988.6,3988.5,1.61377]
[1759053946101,0.79072686,3988.6,3988.5,1.61377]
[1759053946702,1.12202686,3988.6,3988.5,1.61377]
[1759053946893,1.33762686,3988.6,3988.5,1.21637]
[1759053947097,1.33762686,3988.6,3988.5,1.47837]
[1759053947603,1.33762686,3988.6,3988.5,1.14827]
[1759053948005,1.33762686,3988.6,3988.5,1.47837]
[1759053950302,1.78868686,3988.6,3988.5,1.47837]
[1759053951201,1.78868686,3988.6,3988.5,1.47737]
[1759053951390,1.33762686,3988.6,3988.5,1.61277]
[1759053954102,0.57022686,3988.6,3988.5,1.61277]
[1759053955600,1.08872686,3988.6,3988.5,1.61277]
[1759053956107,1.31112686,3988.6,3988.5,1.61277]
[1759053959107,1.31112686,3988.6,3988.5,1.47737]
[1759053960707,1.31112686,3988.6,3988.5,1.21637]
[1759053960905,1.31112686,3988.6,3988.5,0.66287]
[1759053961206,0.7409,3988.4,3988.3,4.18369]
[1759053961407,1.30797718,3988.4,3988.3,4.44469]
[1759053961704,1.30797718,3988.4,3988.3,4.13139]
[1759053961900,1.30797718,3988.4,3988.3,4.16560761]
[1759053962705,1.30797718,3988.4,3988.3,3.90460761]
[1759053962905,1.30797718,3988.4,3988.3,4.16460761]
[1759053963308,1.30797718,3988.4,3988.3,0.95680761]
[1759053964303,1.30797718,3988.4,3988.3,1.27010761]
[1759053966008,1.30797718,3988.4,3988.3,1.49590761]
[1759053967408,0.04368718,3988.4,3988.3,1.49590761]
[1759053967606,0.2086,3989.4,3989.3,0.88828]
[1759053967912,3.2078,3989.5,3989.4,0.45097]
[1759053968212,3.2078,3989.5,3989.4,1.46257]
[1759053968606,3.41904148,3989.5,3989.4,1.46257]
[1759053968803,0.00264148,3989.5,3989.4,1.23578761]
[1759053969009,0.00264148,3989.5,3989.4,1.49678761]
[1759053969605,0.87724148,3989.5,3989.4,1.23578761]
[1759053969812,0.87724148,3989.5,3989.4,1.49678761]
[1759053970912,1.32820148,3989.5,3989.4,0.24571761]
[1759053971213,1.32820148,3989.5,3989.4,0.69668761]
[1759053971417,1.32820148,3989.5,3989.4,1.22848761]
[1759053971418,0.74354148,3989.5,3989.4,1.22848761]
[1759053971714,0.86994148,3989.5,3989.4,0.91358761]
[1759053972516,1.32090148,3989.5,3989.4,0.69668761]
[1759053973310,1.32090148,3989.5,3989.4,0.03421761]
[1759053973513,6.32090148,3989.5,3989.4,0.03421761]
[1759053975212,1.32090148,3989.5,3989.4,0.03421761]
[1759053976918,1.32090148,3989.5,3989.4,0.24381761]
[1759053977125,1.32090148,3989.5,3989.4,0.55871761]
[1759053977417,1.32090148,3989.5,3989.4,0.24381761]
[1759053978412,4.52870148,3989.5,3989.4,0.24381761]
[1759053979506,5.06944428,3989.5,3989.4,0.24381761]
[1759053979710,5.06944428,3989.5,3989.4,0.03421761]
[1759053983826,5.33044428,3989.5,3989.4,0.03421761]
[1759053985416,5.33044428,3989.5,3989.4,0.25271761]
[1759053986120,4.61848428,3989.5,3989.4,0.79141761]
[1759053986327,4.18218428,3989.5,3989.4,1.24238761]
[1759053986524,3.95978428,3989.5,3989.4,1.24238761]
[1759053988325,4.63628428,3989.5,3989.4,0.03421761]
[1759053988529,5.08724428,3989.5,3989.4,0.03421761]
[1759053989727,5.08724428,3989.5,3989.4,0.48518761]
[1759053989932,5.08724428,3989.5,3989.4,0.03421761]
[1759053997036,5.08724428,3989.5,3989.4,0.48518761]
[1759053997336,5.08724428,3989.5,3989.4,0.70368761]
[1759053997533,5.08724428,3989.5,3989.4,0.25271761]
[1759053998136,5.08724428,3989.5,3989.4,0.57371761]
[1759053998335,5.08724428,3989.5,3989.4,0.25271761]
[1759053998633,4.50948428,3989.5,3989.4,1.24238761]
[1759053999636,4.96044428,3989.5,3989.4,1.24238761]
[1759053999834,1.75264428,3989.5,3989.4,1.24238761]
[1759054000037,1.30168428,3989.5,3989.4,1.24238761]
[1759054001136,0.54338428,3989.5,3989.4,6.24238761]
[1759054001834,0.54338428,3989.5,3989.4,1.24238761]
[1759054004132,0.54338428,3989.5,3989.4,6.24238761]
[1759054004436,0.00264148,3989.5,3989.4,6.24238761]
[1759054004833,0.45088,3990.2,3989.4,6.24238761]
[1759054004834,3.746,3990.4,3990.3,1.20807]
[1759054005136,4.28628373,3990.4,3990.3,1.20807]
[1759054005734,4.28914355,3990.4,3990.3,1.21023373]
[1759054005935,4.28914355,3990.4,3990.3,1.24445134]
[1759054006341,1.08134355,3990.4,3990.3,1.24445134]
[1759054008141,0.75994355,3990.4,3990.3,1.24445134]
[1759054008332,0.54314355,3990.4,3990.3,1.24445134]
[1759054008636,0.00285982,3990.4,3990.3,1.24445134]
[1759054009229,3.4246,3990.9,3990.8,0.88701]
[1759054009432,4.28542329,3990.9,3990.8,1.46701]
[1759054009636,3.74722329,3990.9,3990.8,1.46701]
[1759054009828,3.2078,3991.4,3991.3,0.45075]
[1759054010033,4.51376861,3991.4,3991.3,1.50116761]
[1759054010241,4.5158754,3991.4,3991.3,1.50116761]
[1759054010835,4.5158754,3991.4,3991.3,1.18016761]
[1759054011032,4.9666154,3991.4,3991.3,0.03421761]
[1759054012138,0.1268,3992.0,3991.3,0.03421761]
[1759054012139,2.23496503,3992.8,3992.7,1.2078]
[1759054012436,0.4451,3993.7,3993.6,0.7572]
[1759054012641,0.4451,3993.7,3993.6,1.0192]
[1759054012940,0.4451,3993.7,3993.6,1.05341761]
[1759054013235,0.4473146,3993.7,3993.6,0.57557435]
[1759054013439,0.4473146,3993.7,3993.6,0.03607435]
[1759054014241,0.5938146,3993.7,3993.6,0.03607435]
[1759054014540,0.5938146,3993.7,3993.6,0.34817435]
[1759054018544,0.4473146,3993.7,3993.6,0.56597435]
[1759054020736,0.4473146,3993.7,3993.6,0.77267435]
[1759054022843,0.4473146,3993.7,3993.6,1.22316435]
[1759054024746,0.0022146,3993.7,3993.6,1.22316435]
[1759054024946,0.2172146,3993.7,3993.6,1.22316435]
[1759054027845,0.4408146,3993.7,3993.6,1.22316435]
[1759054028047,0.8912946,3993.7,3993.6,0.77267435]
[1759054028246,1.0377946,3993.7,3993.6,0.34817435]
[1759054030949,1.0377946,3993.7,3993.6,0.03607435]
[1759054031345,0.8912946,3993.7,3993.6,0.58887435]
[1759054031650,1.0360946,3993.7,3993.6,0.58887435]
[1759054031852,1.0360946,3993.7,3993.6,0.36387435]
[1759054035042,1.0360946,3993.7,3993.6,0.03607435]
[1759054035352,1.0360946,3993.7,3993.0,3.2078]
[1759054035353,0.62455,3993.1,3993.0,3.2078]
[1759054035556,0.90725,3993.1,3993.0,3.2078]
[1759054036052,5.90725,3993.1,3993.0,3.2078]
[1759054036451,5.90725,3993.1,3993.0,3.20957145]
[1759054036851,0.45059,3992.7,3992.6,3.2078]
[1759054037053,0.90729,3992.7,3992.6,3.2078]
[1759054037752,0.90729,3992.7,3992.6,3.5356]
[1759054037953,0.90729,3992.7,3992.6,3.53767246]
[1759054038555,0.90729,3992.7,3992.6,0.32987246]
[1759054038947,0.79859,3992.7,3992.6,0.55487246]
[1759054039651,0.90729,3992.7,3992.6,0.55487246]
[1759054040757,0.90729,3992.7,3992.6,0.32987246]
[1759054045256,0.90729,3992.7,3992.6,0.36407833]
[1759054047455,0.90729,3992.7,3992.2,3.9766]
[1759054047456,0.45064,3992.3,3992.2,3.9766]
[1759054048255,0.45064,3992.3,3992.2,3.97845885]
[1759054048757,0.62694,3992.3,3992.2,3.97845885]
[1759054055164,0.45064,3992.3,3992.2,3.97845885]
[1759054064462,3.2078,3993.0,3992.9,0.214]
[1759054064659,3.65836,3993.0,3992.9,0.7688]
[1759054067457,3.83466,3993.0,3992.9,0.7688]
[1759054068367,4.01096,3993.0,3992.9,0.7688]
[1759054070758,0.70855,3993.1,3993.0,0.133]
[1759054070958,0.45055,3993.1,3993.0,0.9018]
[1759054073866,0.45054,3993.2,3993.0,1.35236]
[1759054074170,0.45054,3993.2,3993.1,1.21295]
[1759054074557,0.45054,3993.2,3993.1,0.7624]
[1759054079974,0.91414,3993.2,3993.1,0.5478]
[1759054080672,0.91414,3993.2,3993.1,0.3334]
[1759054081676,1.17114,3993.2,3993.1,0.3334]
[1759054082172,1.17114,3993.2,3993.1,0.5478]
[1759054084677,0.73759,3992.7,3992.6,0.3334]
[1759054084872,0.91419,3992.7,3992.6,0.3334]
[1759054085081,0.80379,3992.7,3992.6,0.5478]
[1759054085277,0.80379,3992.7,3992.6,0.7624]
[1759054087881,0.91419,3992.7,3992.6,0.7624]
[1759054088275,0.91419,3992.7,3992.6,0.3334]
[1759054089876,0.91419,3992.7,3992.6,0.5478]
[1759054091882,0.91419,3992.7,3992.6,0.3334]
[1759054091883,0.91399,3992.7,3992.6,0.3334]
[1759054092082,0.3526,3992.3,3992.2,3.43105885]
[1759054092385,1.17044,3992.3,3992.2,3.43105885]
[1759054092581,1.17044,3992.3,3992.2,3.76715885]
[1759054093092,1.06024,3992.3,3992.2,3.76715885]
[1759054093585,1.17044,3992.3,3992.2,3.76715885]
[1759054093791,1.06024,3992.3,3992.2,3.76715885]
[1759054094879,1.06024,3992.3,3992.2,3.98035885]
[1759054098488,0.70764,3992.3,3992.2,3.98035885]
[1759054103996,40.8,3992.9,3992.8,0.451]
[1759054104196,0.70657,3992.9,3992.8,0.7756]
[1759054105301,0.256,3992.9,3992.8,0.7756]
[1759054105599,0.70657,3992.9,3992.8,0.7756]
[1759054107299,0.256,3992.9,3992.8,0.7756]
[1759054108500,0.70657,3992.9,3992.8,0.7756]
[1759054109200,0.45056,3993.1,3992.8,0.7756]
[1759054109404,0.0022146,3993.7,3993.6,0.7756]
[1759054109611,0.4526946,3993.7,3993.6,0.7756]
[1759054111000,0.8050946,3993.7,3993.6,0.7756]
[1759054111903,0.9152946,3993.7,3993.6,0.3246]
[1759054113912,0.9152946,3993.7,3993.6,0.5471]
[1759054114209,0.8050946,3993.7,3993.6,0.5471]
[1759054114506,0.4526946,3993.7,3993.6,0.7756]
[1759054115209,0.6288946,3993.7,3993.6,0.7756]
[1759054115905,0.8848946,3993.7,3993.6,0.7756]
[1759054120909,0.7086946,3993.7,3993.6,0.7756]
[1759054121410,0.8848946,3993.7,3993.6,0.7756]
[1759054122609,0.7086946,3993.7,3993.6,0.7756]
[1759054122907,0.8848946,3993.7,3993.6,0.7756]
[1759054126113,0.7086946,3993.7,3993.6,0.7756]
[1759054127011,0.7086946,3993.7,3993.6,3.9834]
[1759054127814,0.4526946,3993.7,3993.6,3.9834]
[1759054129604,0.8050946,3993.7,3993.6,0.7756]
[1759054146215,0.8050946,3993.7,3993.6,0.5471]
[1759054146416,0.9146946,3993.7,3993.6,0.3246]
[1759054146720,1.1696946,3993.7,3993.6,0.3246]
[1759054147219,1.67178477,3993.7,3993.6,0.3246]
[1759054149424,1.67178477,3993.7,3993.6,0.545]
[1759054150415,1.56218477,3993.7,3993.6,0.7662]
[1759054159016,1.67258477,3993.7,3993.6,0.3246]
[1759054159213,1.1704946,3993.7,3993.6,0.3246]
[1759054159423,1.67231759,3993.7,3993.6,0.3246]
[1759054159820,1.67231759,3993.7,3993.6,0.5406]
[1759054160919,1.56191759,3993.7,3993.6,0.5406]
[1759054162227,1.67231759,3993.7,3993.6,0.5406]
[1759054163432,1.67231759,3993.7,3993.6,0.3246]
[1759054164627,1.67231759,3993.7,3993.6,0.535]
[1759054166439,0.7749,3993.2,3993.1,0.2104]
[1759054166739,1.98226299,3993.2,3993.1,0.2104]
[1759054168335,1.98226299,3993.2,3993.1,0.5401]
[1759054168635,1.98226299,3993.2,3993.1,0.3297]
[1759054171034,1.98226299,3993.2,3993.1,0.5401]
[1759054174045,1.42436299,3993.2,3993.1,0.7634]
[1759054175831,1.20736299,3993.2,3993.1,0.7634]
[1759054176035,0.95236299,3993.2,3993.1,5.7634]
[1759054177335,0.95236299,3993.2,3993.1,8.9712]
[1759054179434,0.95236299,3993.2,3993.1,3.9712]
[1759054182036,1.16936299,3993.2,3993.1,3.9712]
[1759054183041,0.95236299,3993.2,3993.1,3.9712]
[1759054186249,0.50182299,3993.2,3993.1,3.9712]
[1759054186740,0.50182299,3993.2,3993.1,3.6415]
[1759054186939,0.45053,3993.3,3993.2,0.7634]
[1759054187135,0.95464769,3993.3,3993.2,0.7634]
[1759054191041,0.95464769,3993.3,3993.2,1.0184]
[1759054201145,1.16394769,3993.3,3993.2,1.0184]
[1759054205846,0.50411769,3993.3,3993.2,1.0184]
[1759054206046,0.95464769,3993.3,3993.2,1.0184]
[1759054211048,1.17344769,3993.3,3993.2,1.0184]
[1759054211355,1.73544769,3993.3,3993.2,1.0184]
[1759054211656,1.40054769,3993.3,3993.2,1.0184]
[1759054213257,1.73544769,3993.3,3993.2,0.7634]
[1759054213450,1.73544769,3993.3,3993.2,1.0184]
[1759054213656,1.40054769,3993.3,3993.2,1.0184]
[1759054214557,1.17344769,3993.3,3993.2,1.0184]
[1759054214756,1.50834769,3993.3,3993.2,1.0184]
[1759054215349,1.50834769,3993.3,3993.2,0.7634]
[1759054215552,1.50834769,3993.3,3993.2,1.0184]
[1759054216354,1.17344769,3993.3,3993.2,1.0184]
[1759054217249,0.95464769,3993.3,3993.2,1.0184]
[1759054220550,0.95464769,3993.3,3993.2,1.46894]
[1759054221359,0.95464769,3993.3,3993.2,1.21394]
[1759054221557,0.95464769,3993.3,3993.2,1.0184]
[1759054221965,0.95464769,3993.3,3993.2,1.46894]
[1759054222758,0.50411769,3993.3,3993.2,1.46894]
[1759054223558,0.95464769,3993.3,3993.2,1.46894]
[1759054225752,0.0022146,3993.7,3993.6,0.45049]
[1759054225955,0.4526946,3993.7,3993.6,4.65739]
[1759054226760,0.0022146,3993.7,3993.6,4.65739]
[1759054228051,0.67755,3994.0,3993.9,0.86225]
[1759054228259,0.67755,3994.0,3993.9,1.11725]
[1759054228458,0.45045,3994.0,3993.9,1.44955]
[1759054228861,1.23345,3994.0,3993.9,1.44955]
[1759054229063,0.68036686,3994.0,3993.9,1.44955]
[1759054229361,0.45326686,3994.0,3993.9,1.44955]
[1759054229856,0.00281686,3994.0,3993.9,1.44955]
[1759054231854,0.67749,3994.5,3994.4,1.19449]
[1759054232055,0.67749,3994.5,3994.4,4.65729]
[1759054232754,0.45273104,3994.5,3994.4,4.65729]
[1759054232954,0.00234104,3994.5,3994.4,4.65729]
[1759054244072,0.45273104,3994.5,3994.4,4.40229]
[1759054244270,0.67983104,3994.5,3994.4,4.2069]
[1759054244469,0.00234104,3994.5,3994.4,4.6573]
[1759054250281,0.3417,3995.3,3995.0,0.45032]
[1759054250478,0.5688,3995.2,3995.1,0.91102]
[1759054250678,1.01911,3995.2,3995.1,4.32492]
[1759054250876,0.67741,3995.2,3995.1,4.32492]
[1759054251078,0.67741,3995.2,3995.1,4.65722]
[1759054251277,1.18056558,3995.2,3995.1,4.65993552]
[1759054251782,0.73025558,3995.2,3995.1,4.65993552]
[1759054252182,1.07195558,3995.2,3995.1,4.65993552]
[1759054252478,1.73646558,3995.2,3995.1,4.20961552]
[1759054252685,1.73646558,3995.2,3995.1,4.00391552]
[1759054253583,1.28615558,3995.2,3995.1,4.00391552]
[1759054253776,1.73646558,3995.2,3995.1,4.00391552]
[1759054256284,1.28615558,3995.2,3995.1,4.45423552]
[1759054256485,1.28615558,3995.2,3995.1,4.67943552]
[1759054257688,1.73646558,3995.2,3995.1,4.22911552]
[1759054260690,0.94445558,3995.2,3995.1,4.22911552]
[1759054260883,1.39476558,3995.2,3995.1,4.22911552]
[1759054261286,0.94445558,3995.2,3995.1,4.22911552]
[1759054261482,1.39476558,3995.2,3995.1,4.22911552]
[1759054262182,1.18056558,3995.2,3995.1,4.22911552]
[1759054262582,0.50315558,3995.2,3995.1,4.67943552]
[1759054264083,0.95456068,3995.2,3995.1,4.67943552]
[1759054264789,0.95456068,3995.2,3995.1,4.22911552]
[1759054265988,0.95456068,3995.2,3995.1,3.97411552]
[1759054266289,0.95456068,3995.2,3995.1,4.22911552]
[1759054267089,1.16036068,3995.2,3995.1,4.22911552]
[1759054267284,1.69856068,3995.2,3995.1,4.00391552]
[1759054267884,1.69856068,3995.2,3995.1,3.74891552]
[1759054268086,1.69856068,3995.2,3995.1,4.00391552]
[1759054268280,1.69856068,3995.2,3995.1,3.74891552]
[1759054268503,1.69856068,3995.2,3995.1,4.00391552]
[1759054269792,1.69856068,3995.2,3995.1,3.74891552]
[1759054269980,1.69856068,3995.2,3995.1,4.00391552]
[1759054270689,1.69856068,3995.2,3995.1,3.74891552]
[1759054270894,1.69856068,3995.2,3995.1,3.46451552]
[1759054271391,1.69856068,3995.2,3995.1,3.78571552]
[1759054272286,1.69856068,3995.2,3995.1,3.99681552]
[1759054276396,1.69856068,3995.2,3995.1,4.20541552]
[1759054277389,0.50425068,3995.2,3995.1,4.20541552]
[1759054277788,0.50425068,3995.2,3995.1,4.65573552]
[1759054279697,0.50399202,3995.2,3995.1,4.65573552]
[1759054281192,0.00220052,3995.2,3995.1,4.65573552]
[1759054285393,0.45251052,3995.2,3995.1,4.65573552]
[1759054285987,0.45251052,3995.2,3995.1,3.95141552]
[1759054286291,0.67631052,3995.2,3995.1,4.20541552]
[1759054286799,1.17731062,3995.2,3995.1,4.20541552]
[1759054287399,0.67631052,3995.2,3995.1,4.65573552]
[1759054287597,1.17730147,3995.2,3995.1,4.65573552]
[1759054287995,1.17730147,3995.2,3995.1,4.20541552]
[1759054288594,1.17730147,3995.2,3995.1,4.65573552]
[1759054288797,0.45251052,3995.2,3995.1,4.65573552]
[1759054288998,0.45251052,3995.2,3995.1,4.20541552]
[1759054289202,0.95349105,3995.2,3995.1,4.65573552]
[1759054289402,0.95349105,3995.2,3995.1,4.40173552]
[1759054289593,0.95349105,3995.2,3995.1,4.65573552]
[1759054289906,0.95349105,3995.2,3995.1,4.40173552]
[1759054290097,0.95349105,3995.2,3995.1,4.65573552]
[1759054290601,0.50318105,3995.2,3995.1,4.65573552]
[1759054292703,0.95349105,3995.2,3995.1,4.65573552]
[1759054293205,0.50318105,3995.2,3995.1,4.65573552]
[1759054293600,0.95349105,3995.2,3995.1,4.65573552]
[1759054294703,0.50318105,3995.2,3995.1,4.65573552]